Cogmind - Beta 9.3 @@@ ROGUE MODE // 2019.12.27 @ 17:31:01 // Winter2019/RPGLIKE Player: Cassie Rose Result: Destroyed by G-47 Trooper with Particle Gun Performance ------------- Evolutions (1) 500 Regions Visited (2) 400 Robots Destroyed (97) 485 Value Destroyed (2260) 2260 Prototype IDs (1) 20 Alien Tech Used (0) 0 Bonus (341) 341 TOTAL SCORE: 4006 Bonus ------- High Alert Combat Kills 341 Cogmind --------- Core Integrity 0/950 Matter 246/300 Energy 376/380 System Corruption 0% Temperature Cool (15) Movement Treading (160) Location -9/Materials Parts ------- > --- POWER (2) -------- Nuclear Core Nuclear Core > --- PROPULSION (4) --- Improved Treads Improved Treads Improved Treads Improved Treads > --- UTILITY (5) ------ Improved Signal Interpreter Improved Terrain Scanner Terrain Scan Processor Improved Targeting Computer Medium Armor Plating > --- WEAPON (3) ------- Improved Medium Laser Particle Cannon Improved Light Cannon > --- INVENTORY (0) ---- (None) Peak State ------------ > --- POWER ------------ Nuclear Core Nuclear Core > --- PROPULSION ------- Improved Treads Improved Treads Improved Treads Improved Treads > --- UTILITY ---------- Improved Signal Interpreter Improved Terrain Scanner Terrain Scan Processor Improved Targeting Computer Medium Armor Plating > --- WEAPON ----------- Improved Medium Laser Particle Cannon Improved Light Cannon > --- INVENTORY -------- (None) [Rating: 31] Favorites ----------- Power Nuclear Core Engine Ion Engine Power Core Nuclear Core Propulsion Improved Treads Treads Improved Treads Utility Improved Terrain Scanner Device Improved Terrain Scanner Processor Improved Targeting Computer Protection Medium Armor Plating Weapon Improved Light Cannon Energy Gun EM Pulse Gun Energy Cannon Particle Cannon Ballistic Gun Assault Rifle Ballistic Cannon Improved Light Cannon Build | -11 -10 -9 ------- Run | Scr Mat Mat Slots Evolved 10 | 4 1 5 Power 1 | 1 . . Propulsion 3 | 1 1 1 Utility 4 | 1 . 3 Weapon 2 | 1 . 1 Parts Attached 36 | 8 4 24 Power 6 | 2 2 2 Engine 4 | 2 2 . Core 2 | . . 2 Reactor . | . . . Propulsion 11 | 2 1 8 Treads 11 | 2 1 8 Leg . | . . . Wheel . | . . . Hover . | . . . Flight . | . . . Utility 10 | 2 . 8 Device 2 | 1 . 1 Storage . | . . . Processor 5 | 1 . 4 Hackware . | . . . Protection 3 | . . 3 Artifact . | . . . Weapon 9 | 2 1 6 Energy Gun 4 | 1 . 3 Energy Cannon 1 | . . 1 Ballistic Gun 3 | 1 1 1 Ballistic Cannon 1 | . . 1 Launcher . | . . . Special Weapon . | . . . Impact Weapon . | . . . Slashing Weapon . | . . . Piercing Weapon . | . . . Special Melee Weapon . | . . . Unidentified Prototypes 1 | . . 1 Parts Lost 1 | . . 1 Power . | . . . Propulsion . | . . . Utility . | . . . Weapon 1 | . . 1 Highest Loss Streak 1 | . . 1 Average Slot Usage (%) 96 | . 99 95 Engine 8 | . 24 . Core 10 | . . 14 Treads 27 | . 24 29 Device 8 | . 11 7 Processor 18 | . 11 20 Protection 2 | . . 4 Energy Gun 5 | . 11 2 Energy Cannon 3 | . . 4 Ballistic Gun 4 | . 11 1 Ballistic Cannon 5 | . . 7 Naked Turns . | . . . Heaviest Build 33 | 13 15 33 Greatest Support 107 | 55 55 107 Greatest Overweight (x) . | . . . Average Overweight (x) . | . . . Largest Inventory Capacity . | . . . Average Capacity . | . . . Most Carried . | . . . Average Carried . | . . . Final Capacity . | . . . Final Carried . | . . . Class Distribution -------------------- 44% | Skirmisher 40% | Mutant 8% | Scavenger-Skirmisher 6% | Scavenger-Mutant Dominant Class ---------------- Mutant | -10/Materials Skirmisher | -9/Materials Resources | -11 -10 -9 ----------- Run | Scr Mat Mat Matter Collected 1508 | 256 432 820 Remotely . | . . . Salvage Created 2834 | 104 980 1750 Parts 199 | 8 61 130 Haulers Intercepted 8 | . 2 6 Recyclers Shooed 1 | . . 1 Parts Field Recycled . | . . . Retrieved Matter . | . . . Parts Self-Destructed . | . . . Prevented . | . . . Kills | -11 -10 -9 ------- Run | Scr Mat Mat Combat Hostiles Destroyed 66 | . 20 46 Guns 30 | . 18 12 Cannons 34 | . . 34 AOE 2 | . 2 . Classes Destroyed 14 | 2 5 7 Worker 8 | . 3 5 Builder 1 | . . 1 Tunneler 2 | 2 . . Hauler 8 | . 2 6 Recycler 2 | 1 . 1 Mechanic 1 | . . 1 Operator 2 | . . 2 Watcher 7 | . 3 4 Swarmer 20 | . 6 14 Grunt 33 | . 14 19 Brawler 1 | . . 1 Duelist 1 | . . 1 Protector 1 | . . 1 Sentry 10 | . . 10 Best Kill Streak 10 | 3 4 10 Combat Bots Only 6 | . 3 6 Max Kills in Single Turn 2 | 1 2 2 Gunslinging 1 | . 1 1 Exploded 2 | . 2 . Melee . | . . . Uniques/NPCs Destroyed . | . . . Combat | -11 -10 -9 -------- Run | Scr Mat Mat Damage Taken 3319 | . 894 2425 Core 2623 | . 712 1911 Absorbed by Shields . | . . . Redirected to Core 2219 | . 581 1638 Core Remaining (%) 87 | 100 75 . Volleys Fired 262 | 6 103 153 Largest 3 | 2 2 3 Hottest 163 | 60 60 163 Shots Fired 521 | 10 206 305 Gun 288 | 10 206 72 Cannon 233 | . . 233 Launcher . | . . . Special . | . . . Kinetic 289 | 6 103 180 Thermal 107 | . . 107 Explosive . | . . . Electromagnetic 125 | 4 103 18 Robot Hit Streak 21 | 5 11 21 Robot Miss Streak 6 | 1 4 6 Penetration Max . | . . . Secondary Targets 3 | . 2 1 Max Gunslinging Chain 1 | . 1 1 Shots Hit Robots 346 | 7 125 214 Core Hits 131 | 4 45 82 Critical Hits 4 | 1 . 3 Critical Kills 2 | . . 2 Critical Parts Destroyed 2 | 1 . 1 Melee Attacks . | . . . Impact . | . . . Slashing . | . . . Piercing . | . . . Sneak Attacks . | . . . Combat Hostiles . | . . . Follow-up Attacks . | . . . Damage Inflicted 5939 | 133 1769 4037 Guns 2364 | 88 1653 623 Cannons 3382 | . . 3382 Explosions 192 | 45 116 31 Melee . | . . . Ramming 1 | . . 1 Kinetic 2874 | 50 704 2120 Thermal 1929 | 45 116 1768 Explosive . | . . . Electromagnetic 1135 | 38 949 148 Impact . | . . . Slashing . | . . . Piercing . | . . . Highest Corruption 4 | . 4 . Average Corruption 3 | . 3 . Corruption Purged . | . . . Effects 25 | . 25 . Message Errors 2 | . 2 . Matter Fused 6 | . 6 . Heat Flow Errors 4 | . 4 . Energy Discharges 4 | . 4 . Parts Rejected 1 | . 1 . Data Loss (minor) 2 | . 2 . Targeting Errors 6 | . 6 . Overload Shots . | . . . Overflow Damage 67 | . . 67 Projectiles 67 | . . 67 Explosions . | . . . Melee . | . . . Knockbacks 18 | . . 18 Impact . | . . . Kinetic 16 | . . 16 Secondary 2 | . . 2 Self-Inflicted Damage 43 | . 17 26 Shots 2 | . 1 1 Rammed 1 | . . 1 Targets Rammed 1 | . . 1 Kicked . | . . . Crushed . | . . . Highest Temperature 240 | . 240 . Average Temperature 63 | . 63 . Received Heat Transfer 1221 | . 327 894 Siege Activations . | . . . Robots Corrupted . | . . . Combat Hostiles . | . . . Parts Fried 2 | . 2 . Impact Corruptions . | . . . Robots Melted . | . . . Combat Hostiles . | . . . Parts Melted 5 | . 1 4 Heat Transferred 3376 | . 200 3176 Parts Sabotaged . | . . . Parts Stolen . | . . . Parts Stripped . | . . . Power Chain Reactions 4 | 1 2 1 Missiles Intercepted . | . . . Alert | -11 -10 -9 ------- Run | Scr Mat Mat Peak Influence 865 | 15 305 865 Average Influence 379 | 6 111 509 Maximum Alert Level 3 | . 1 3 Low Security (%) 36 | 100 92 9 Level 1 20 | . 7 26 Level 2 25 | . . 38 Level 3 17 | . . 25 Level 4 . | . . . Level 5 . | . . . High Security . | . . . Max Security . | . . . Squads Dispatched 11 | . 4 7 Investigation 7 | . 4 3 Extermination . | . . . Reinforcement 2 | . . 2 Assault 2 | . . 2 Garrison . | . . . Intercept . | . . . Construction Impeded . | . . . Haulers Reinforced . | . . . Stealth | -11 -10 -9 --------- Run | Scr Mat Mat Distress Signals 4 | . 1 3 Communications Jammed . | . . . Distress Signals . | . . . Times Spotted 104 | . 29 75 Peak Tracking Total 10 | . 3 10 Tactical Retreats 8 | . 2 6 Traps | -11 -10 -9 ------- Run | Scr Mat Mat Traps Triggered 10 | . 7 3 Indirectly 1 | . 1 . Trap Hack Attempts . | . . . Triggered . | . . . Disarmed . | . . . Reprogrammed . | . . . Reused . | . . . Traps Extracted . | . . . Installed . | . . . Triggered . | . . . Machines | -11 -10 -9 ---------- Run | Scr Mat Mat Machines Disabled 9 | . 5 4 Max in Single Turn 1 | . 1 1 Machines Sabotaged . | . . . Garrisons Compromised . | . . . Overloaded Fab Kills . | . . . Fab Network Shutdowns . | . . . Hacking | -11 -10 -9 --------- Run | Scr Mat Mat Machines Accessed . | . . . Terminals . | . . . Fabricators . | . . . Repair Stations . | . . . Recycling Units . | . . . Scanalyzers . | . . . Garrison Access . | . . . Total Hacks . | . . . Successful . | . . . Failed . | . . . Catastrophic . | . . . Database Lockouts . | . . . Manual . | . . . Terminals . | . . . Fabricators . | . . . Repair Stations . | . . . Recycling Units . | . . . Scanalyzers . | . . . Garrison Access . | . . . Terminal Hacks . | . . . Fabricator Hacks . | . . . Repair Station Hacks . | . . . Recycling Unit Hacks . | . . . Scanalyzer . | . . . Garrison Access Hacks . | . . . Unauthorized Hacks . | . . . Terminals . | . . . Fabricators . | . . . Repair Stations . | . . . Recycling Units . | . . . Scanalyzers . | . . . Garrison Access . | . . . Data Cores Recovered . | . . . Used . | . . . Hacking Detections . | . . . Full Trace Events . | . . . Feedback Events . | . . . Feedback Blocked . | . . . Robot Schematics Acquired . | . . . Robots Built . | . . . Matter . | . . . Time . | . . . Total Robot Build Rating . | . . . Part Schematics Acquired . | . . . Parts Built . | . . . Matter . | . . . Time . | . . . Total Part Build Rating . | . . . Parts Repaired . | . . . Time . | . . . Parts Recycled . | . . . Recycled Matter . | . . . Retrieved Matter . | . . . Retrieved Components . | . . . Parts Scanalyzed . | . . . Part Schematics Acquired . | . . . Parts Damaged . | . . . Bothacking | -11 -10 -9 ------------ Run | Scr Mat Mat Used RIF Installer . | . . . Robots Hacked . | . . . Non-combat . | . . . Combat . | . . . Robot Hacks Applied . | . . . Relay Couplers Released . | . . . Robots Rewired . | . . . Allies Hacked . | . . . Hacks Repelled . | . . . Allies | -11 -10 -9 -------- Run | Scr Mat Mat Total Allies . | . . . Largest Group . | . . . Highest-Rated Group . | . . . Highest-Rated Ally . | . . . Total Orders . | . . . Ally Attacks . | . . . Total Damage . | . . . Kills . | . . . Allies Corrupted . | . . . Allies Melted . | . . . Intel | -11 -10 -9 ------- Run | Scr Mat Mat Robot Analysis Total . | . . . Derelict Logs Recovered . | . . . Drone Launches . | . . . Drone Recoveries . | . . . Exploration | -11 -10 -9 ------------- Run | Scr Mat Mat Turns Passed 4232 | 93 1268 2871 Spaces Moved 2062 | 43 577 1442 Core 2 | 2 . . Treads 2060 | 41 577 1442 Legs . | . . . Wheels . | . . . Hover . | . . . Flight . | . . . Fastest Speed 50 | 50 160 160 Average Speed 159 | 154 160 160 Slowest Speed 160 | 160 160 160 Overloaded Moves . | . . . Propulsion Burnouts . | . . . Robots Hopped . | . . . Cave-ins Triggered . | . . . Exploration Rate (%) 63 | 4 93 94 Regions Visited 2 Branch Regions . Pre-discovered Areas . | . . . Known Exits Taken . | . . . Unknown Exits Taken 2 | 1 1 . Scrap Searched . | . . . Spaces Dug . | . . . Terrain Destroyed 20 | 6 4 10 Melee . | . . . Projectile 4 | . . 4 AOE 16 | 6 4 6 Actions | -11 -10 -9 --------- Run | Scr Mat Mat Total 2488 | 56 717 1715 Wait 30 | . 1 29 Move 2060 | 42 576 1442 Hop . | . . . Pick Up . | . . . Fast Attach 24 | 8 2 14 Attach . | . . . Detach . | . . . Swap 12 | . 2 10 Drop 17 | . 3 14 Fire 262 | 6 103 153 Melee . | . . . Ram . | . . . Kick . | . . . Crush 1 | . . 1 Escape Stasis . | . . . Rewire . | . . . Trap . | . . . Miscellaneous 82 | . 30 52 Route ------- -11/Scrapyard -10/Materials (discovered 5 exits: [*Mat x3] / [*Min x2]) -9/Materials (discovered 7 exits: *Mat x3 / *Min x2 / *Sto x2) History --------- Turn | Location | Event 1 | -11/Scrapyard | Upgraded with Power slot (x1) 1 | -11/Scrapyard | Upgraded with Propulsion slot (x1) 1 | -11/Scrapyard | Upgraded with Utility slot (x1) 1 | -11/Scrapyard | Upgraded with Weapon slot (x1) 21 | -11/Scrapyard | Discovered new exit (range 16) 94 | -11/Scrapyard | Entered Materials 309 | -10/Materials | Build established: Mutant 372 | -10/Materials | Discovered new exit (range 15) 566 | -10/Materials | Discovered new exit (range 16) 647 | -10/Materials | Discovered new exit (range 15) 675 | -10/Materials | Discovered new exit (range 13) 800 | -10/Materials | Reached level 2 1296 | -10/Materials | Discovered new exit (range 16) 1328 | -10/Materials | Upgraded with Propulsion slot (x1) 1362 | -10/Materials | Entered another Materials area 1364 | -9/Materials | Reached level 3 1369 | -9/Materials | Upgraded with Propulsion slot (x1) 1408 | -9/Materials | Reached level 4 1421 | -9/Materials | Upgraded with Utility slot (x1) 1530 | -9/Materials | Discovered new exit (range 8) 1769 | -9/Materials | Core integrity fell below 50% 1799 | -9/Materials | Reached level 5 1852 | -9/Materials | Discovered new exit (range 8) 1994 | -9/Materials | Upgraded with Utility slot (x1) 2208 | -9/Materials | Core integrity fell below 20% 2452 | -9/Materials | Discovered new exit (range 15) 2484 | -9/Materials | Identified exit to Materials 2516 | -9/Materials | Discovered new exit (range 15) 2518 | -9/Materials | Reached level 6 2521 | -9/Materials | Upgraded with Utility slot (x1) 2550 | -9/Materials | Identified exit to Mines 2840 | -9/Materials | Discovered exit to Mines (range 6) 2890 | -9/Materials | Discovered new exit (range 16) 2923 | -9/Materials | Build established: Skirmisher 3000 | -9/Materials | Identified exit to Storage 3225 | -9/Materials | Reached level 7 3228 | -9/Materials | Upgraded with Weapon slot (x1) 3351 | -9/Materials | Discovered exit to Materials (range 10) 4162 | -9/Materials | First assault squad dispatched 4204 | -9/Materials | Reached level 8 4233 | -9/Materials | Destroyed by G-47 Trooper with Particle Gun Last Messages --------------- 04200_ G-47 Trooper unfolds itself. 04200_ B-36 Bruiser unfolds itself. 04200_ G-34 Mercenary unfolds itself. 04200_ I-25 Savior unfolds itself. 04201_ G-47 Trooper destroyed. 04203_ Med. Armor Plating severed. 04204_ Reached level 8. 04204_ L-31 Rogue destroyed. 04211_ B-36 Bruiser suffers critical hit. 04211_ B-36 Bruiser destroyed. 04214_ Acquired Med. Armor Plating. 04215_ K-01 Serf collects debris. 04216_ G-34 Mercenary destroyed. 04216_ I-25 Savior destroyed. 04218_ K-01 Serf collects debris. 04219_ G-34 Mercenary destroyed. 04221_ K-01 Serf collects debris. 04225_ G-34 Mercenary knocked back. 04226_ U-05 Engineer lays Concrete. 04228_ K-01 Serf collects debris. Map ----- +----------------------------------------------------+ | ## ##"""""""# """ + %% [[ #### # | | ## ########## """ # [ > #### """ # | | ## ########## """ # =!% #### """ # | | ## ### # """ # ##### #### """ # | | ## ### # # =###### ##### # | | ## ### # """ # ^ ^ # # #######+###### | | ## ### # """ # # + | | # ### # """ # ^ # # #### | | # ### # """ ## # # #### | | # # # ## # ############+##### | | + + # ##^ " # ######## !## | | # # ######## ^""" # ######## """ ## | | # # ######## ^""" # ######## """ ## | | # # ######## """ # ######## """ ## | | # # ######## "" ############# ## | | ## ############### """! ############# """ ## | | ## # ######## ""!%*############# """ ## | | ## # ######## "" * ############# """ ## | | ## # " # ## " ############# ## | | ?# # ! ""# % ###################### | | ## # ""# =% k ###################### | | ## # """# % *g= ###################?## | | ## # "" # ###+###%g%#################????# | | ## # """## ### #%i=###################??# | | ## / """## u### #=%g################?##??# | | ## = # """## ### #@*%###################??? | | ## # " ## ### # ! #### T ##########?? | | ## # ## ### # #### ###########? | | ## # ##C ### # ####""" ##########?? | | ## ###### ## ###!!! # ####""" #########??# | | # ####### ##!!! # ####""" #####?#####? | | # ##!!! # u #### ############ | | # * % ####### #######+###########?## | | # ####### %=% ##########? | | # ####### #######[ =! < #########?# | | ###+###########+######### = ######?#?## | | ### """ """ ############################## | | ### """ """ ############################## | | """ ### """ """ ############################## | | """"" # # #############################? | | """"" ### #########################?###? | | """"" ### #############################? | | """ ### #########################??#?? | | ### ###########################??? | | ##############################################???? | | ##################?#######################?##????? | | ###############?###################?########?????? | | #################?#####################??#???????? | | | | | +----------------------------------------------------+ Best States ------------- Heat Dissipation 91 Energy Generation 23 Energy Capacity 400 Matter Stores 300 Matter Capacity 300 Sight Range 16 Robot Scan Range 12 Terrain Scan Range 16 Terrain Scan Density 385 Armor Coverage 225 Evasion (%) 40 Targeting Accuracy 6 Recoil Reduction 4 Item Schematics ----------------- None Robot Schematics ------------------ None Fabricated ------------ Nothing Alien Tech Used ----------------- None Achievements -------------- None Challenges ------------ None RPGLIKE | -11 -10 -9 --------- Run | Scr Mat Mat Levels Raised 7 | . 1 6 XP Earned 13754 | 3000 2950 7804 XP Spent 11920 | 2990 1480 7450 Upgrades 41 | 14 8 19 Power Slot 1 | 1 . . Propulsion Slot 3 | 1 1 1 Utility Slot 4 | 1 . 3 Weapon Slot 2 | 1 . 1 Core Integrity 7 | 1 1 5 Heat Dissipation 11 | 2 3 6 Mass Support 3 | 3 . . Sensor Range 6 | 2 2 2 Terrain Scan Density 3 | 2 1 . Ranged Accuracy 1 | . . 1 Protomatter Created 715 | . 211 504 Integrity Restored 1749 | . 624 1125 Core 1666 | . 541 1125 Parts 83 | . 83 . Protomatter Decayed 19 | . . 19 Game ------ Seed ThunderBottomlessStabilizer Manual? 0 Play Time 00:35:19 Cumulative 79.8 hours Start 2019.12.27 @ 16:35:58 End 2019.12.27 @ 17:31:01 Sessions 1 Manual Loads 0 Difficulty Rogue Special Mode Winter2019/RPGLIKE Game No. 134 Rogue 134 Adventurer 0 Explorer 0 Win Type - Total 0 Types 0/0/0/0/0/0/0 Lore% 22 Gallery% 28 Achievement% 27 Wizard Run 0 Options --------- ASCII 0 Keyboard 0 Movement Mouse Keybinds 0 Fullscreen 2 Font 18/SmallcapsGlow Map View 76x50 Tactical HUD 1 Map Filters NONE Filters LOW_CONTRAST(13,24,33)|BRIGHTNESS(120)|SATURATION(80) Steam 1 RUN: 2364bd0c-2981-4377-9a7a-a892754973ca